fUST/lending_fUST_20240607
["ID","MTS","AMOUNT","RATE_DAILY","PERIOD"]
[328710691,1717721440020,-2885.03,0.00024657,2]
[328710692,1717721440030,-3744.05,0.00024657,2]
[328710693,1717721440040,-445.176974,0.00024657,2]
[328710694,1717721440050,-445.176974,0.00024657,2]
[328710695,1717721440061,-445.176974,0.00024657,2]
[328710696,1717721440071,-445.176974,0.00024657,2]
[328710697,1717721440081,-445.176974,0.00024657,2]
[328710698,1717721440091,-445.176974,0.00024657,2]
[328710699,1717721440101,-445.176974,0.00024657,2]
[328710700,1717721440111,-445.176974,0.00024657,2]
[328710701,1717721440121,-654.39,0.00024657,2]
[328710702,1717721440131,-1275.87,0.00024657,2]
[328710703,1717721440140,-500.0,0.00024657,2]
[328710704,1717721440151,-151.0,0.00024657,2]
[328710705,1717721440161,-151.0,0.00024657,2]
[328710706,1717721440171,-500.0,0.00024657,2]
[328710707,1717721440182,-500.0,0.00024657,2]
[328710708,1717721440191,-151.0,0.00024657,2]
[328710709,1717721440202,-151.0,0.00024657,2]
[328710710,1717721440212,-500.0,0.00024657,2]
[328710711,1717721440221,-151.0,0.00024657,2]
[328710712,1717721440231,-151.0,0.00024657,2]
[328710713,1717721440241,-635.68,0.00024657,2]
[328710714,1717721440252,-255.90555191,0.00024657,2]
[328710715,1717721440262,-151.0,0.00024657,2]
[328710716,1717721440272,-235.161568,0.00024657,2]
[328710717,1717721440282,-499.4598699,0.00024685,2]
[328710718,1717721440292,-200.731213,0.000247,2]
[328710719,1717721440302,-200.731213,0.000247,2]
[328710720,1717721440312,-608.565,0.00024875,2]
[328710721,1717721440322,-211.023,0.00024875,2]
[328710722,1717721440332,-962.11714876,0.00024899,2]
[328710723,1717721440342,-1834.45,0.00024921,3]
[328710724,1717721440352,-500.0,0.00024931,2]
[328710725,1717721440362,-378.63126422,0.00024931,2]
[328710726,1717721440372,-2021.02,0.00024931,2]
[328710727,1717721440382,-552.26,0.00024931,2]
[328710728,1717721440392,-1145.9,0.00024931,2]
[328710729,1717721440402,-500.0,0.00024931,2]
[328710730,1717721440412,-500.0,0.00024931,2]
[328710731,1717721440422,-864.98,0.00024931,2]
[328710732,1717721440432,-500.0,0.00024931,2]
[328710733,1717721440442,-1832.78,0.00024931,2]
[328710734,1717721440452,-192.997159,0.00024931,2]
[328710735,1717721440461,-551.79,0.00024931,2]
[328710736,1717721440471,-2402.05,0.00024931,2]
[328710737,1717721440480,-2763.51,0.00024931,2]
[328710738,1717721440490,-500.0,0.00024931,2]
[328710739,1717721440500,-500.0,0.00024931,2]
[328710740,1717721440509,-200.731213,0.00024931,2]
[328710741,1717721440519,-200.731213,0.00024931,2]
[328710742,1717721440529,-200.731213,0.00024931,2]
[328710743,1717721440539,-200.731213,0.00024931,2]
[328710744,1717721440549,-500.0,0.00024931,2]
[328710745,1717721440559,-682.91,0.00024931,2]
[328710746,1717721440569,-500.0,0.00024931,2]
[328710748,1717721440579,-539.602293,0.00024931,2]
[328710750,1717721440588,-539.602293,0.00024931,2]
[328710752,1717721440598,-539.602293,0.00024931,2]
[328710753,1717721440608,-539.602293,0.00024931,2]
[328710754,1717721440617,-500.0,0.00024931,2]
[328710755,1717721440627,-500.0,0.00024931,2]
[328710756,1717721440636,-1130.76,0.00024931,2]
[328710757,1717721440647,-151.0,0.00024931,2]
[328710758,1717721440656,-151.0,0.00024931,2]
[328710759,1717721440666,-1150.49,0.00024931,2]
[328710760,1717721440676,-151.0,0.00024931,2]
[328710761,1717721440686,-151.0,0.00024931,2]
[328710762,1717721440696,-500.0,0.00024931,2]
[328710763,1717721440706,-151.0,0.00024931,2]
[328710764,1717721440716,-151.0,0.00024931,2]
[328710765,1717721440728,-500.0,0.00024931,2]
[328710766,1717721440738,-505.58,0.00024931,2]
[328710768,1717721440747,-500.0,0.00024931,2]
[328710769,1717721440757,-2885.03,0.00024931,2]
[328710770,1717721440766,-3744.05,0.00024931,2]
[328710771,1717721440777,-445.176974,0.00024931,2]
[328710772,1717721440786,-445.176974,0.00024931,2]
[328710773,1717721440796,-445.176974,0.00024931,2]
[328710774,1717721440805,-445.176984,0.00024931,2]
[328710775,1717721440815,-654.39,0.00024931,2]
[328710776,1717721440825,-1275.87,0.00024931,2]
[328710777,1717721440840,-500.0,0.00024931,2]
[328710778,1717721440851,-151.0,0.00024931,2]
[328710779,1717721440863,-151.0,0.00024931,2]
[328710780,1717721440874,-23.94765318,0.00024931,2]
[328710781,1717721440894,-476.05234682,0.00024931,2]
[328710782,1717721440905,-151.0,0.00024931,2]
[328710783,1717721440916,-477.34665318,0.00024931,2]
[328710994,1717721443709,-260.2386595,0.000238,2]
[328710996,1717721443720,-164.047585,0.000245,2]
[328710998,1717721443730,-164.047585,0.00024657,2]
[328711000,1717721443740,-22.65334682,0.00024931,2]
[328711002,1717721443749,-151.0,0.00024931,2]
[328711004,1717721443759,-151.0,0.00024931,2]
[328711006,1717721443769,-276.75047521,0.00024931,2]
[328711259,1717721446352,-164.047585,0.00024657,2]
[328711261,1717721446363,-358.92952479,0.00024931,2]
[328711263,1717721446373,-164.047585,0.00024931,2]
[328711265,1717721446382,-164.047585,0.00024931,2]
[328711282,1717721446541,-164.047585,0.00024931,2]
[328711284,1717721446551,-87.31654278,0.00024932,2]
[328711287,1717721446564,-64.68345722,0.00024932,2]
[328711289,1717721446573,-449.86719469,0.00024984,2]
[328711291,1717721446585,-150.13280531,0.00024984,2]
[328711293,1717721446595,-539.602293,0.00024988,2]
[328711295,1717721446604,-539.602293,0.00024988,2]
[328711297,1717721446613,-1573.57136976,0.00024999,7]
[328713027,1717721464294,125.22819424,0.00015,2]
[328713030,1717721464315,247.77,0.00015,2]
[328717852,1717721519529,187.27413947,9.999e-05,2]
[328717853,1717721577945,759.55453663,9.999e-05,2]
[328717854,1717721581148,10536.38828398,9.999e-05,2]
[328717855,1717721597281,1155.18222272,9.999e-05,2]
[328717856,1717721603369,524.11356144,9.999e-05,2]
[328717857,1717721620590,154.93802479,9.999e-05,2]
[328717858,1717721622122,659.64623615,9.999e-05,2]
[328717859,1717721627354,154.93802479,9.999e-05,2]
[328717860,1717721631498,284.42018081,0.000137,2]
[328717862,1717721872628,1979.9542526,9.999e-05,2]
[328717863,1717722161661,-763.07245916,0.00015,2]
[328717864,1717722161683,-945.32067944,0.00021916,2]
[328717865,1717722161704,-166.666666,0.00021918,2]
[328717866,1717722161726,-168.737676,0.00022175,2]
[328717867,1717722161748,-150.0,0.00022831,2]
[328717868,1717722161770,-154.93802479,0.00023309,2]
[328717869,1717722161793,-166.666666,0.0002331,2]
[328717870,1717722161815,-4225.39782861,0.00023577,2]
[328717871,1717722425176,-164.277906,0.00022578,2]
[328717872,1717722425197,-154.93802479,0.00023,2]
[328717873,1717722425217,-154.93802479,0.0002334,2]
[328717874,1717722425238,-1100.10114648,0.00023342,2]
[328717875,1717722425258,-1558.10999656,0.00023345,2]
[328717878,1717722442202,-232.47905883,0.00023345,2]
[328717886,1717722529291,738.96798365,9.999e-05,2]
[328717889,1717722548140,-150.0,0.00021477,2]
[328717961,1717722632735,-251.23026629,0.00023242,2]
[328717963,1717722632745,-2817.03060541,0.00023345,2]
[328717965,1717722632755,-224.97896443,0.00023577,2]
[328717967,1717722632765,-166.666666,0.00024493,2]
[328717969,1717722632774,-3476.65516037,0.00024499,2]
[328717971,1717722632786,-255.62219758,0.00024499,2]
[328717973,1717722632796,-519.02780242,0.00024557,2]
[328717975,1717722632808,-48.12299227,0.00024557,2]
[328717977,1717722632818,-2975.33380817,0.00024656,2]
[328718585,1717722638748,-1569.07241612,0.00024656,2]
[328718588,1717722638761,-4598.2762932,0.00024656,2]
[328718590,1717722638773,-7242.200015,0.00024656,2]
[328718912,1717722642328,-2029.50518011,0.00024656,2]
[328718919,1717722642386,-1524.29,0.00024656,2]
[328719090,1717722644273,-0.56427464,0.00024656,2]
[328719303,1717722646799,-2162.81833493,0.00024656,2]
[328719316,1717722646928,-206.7783136,0.00024656,2]
[328719980,1717723636179,-166.666666,0.00023228,2]
[328719981,1717723636200,-199.1901756,0.0002363,2]
[328719982,1717723636220,-2419.41956578,0.00024247,2]
[328719983,1717723654118,-395.92445694,0.00024247,2]
[328720052,1717723839231,-3.99338724,0.00023736,2]
[328720230,1717723847276,-260.50661276,0.00023736,2]
[328720232,1717723847286,-387.64074894,0.000238,2]
[328720234,1717723847295,-129.83550064,0.000238,2]
[328720300,1717723891500,192.62914381,0.00015,2]
[328720301,1717723891521,151.0,0.00015,2]
[328720302,1717723891541,166.666666,0.00015,2]
[328720303,1717723891564,250.0,0.00015,2]
[328720309,1717723960710,154.93802479,9.999e-05,2]
[328720312,1717724012068,560.35511342,9.999e-05,2]
[328720313,1717724017597,154.93802479,9.999e-05,2]
[328720315,1717724029605,157.13970826,9.999e-05,2]
[328720316,1717724030148,560.35511342,9.999e-05,2]
[328720317,1717724045483,185.30449836,9.999e-05,2]
[328720318,1717724050076,291.94501409,9.999e-05,2]
[328720319,1717724068075,291.94501409,9.999e-05,2]
[328720320,1717724084077,291.94501409,9.999e-05,2]
[328720321,1717724106078,291.94501409,9.999e-05,2]
[328720322,1717724122088,291.94501409,9.999e-05,2]
[328720323,1717724131738,2061.58174809,0.00029692,60]
[328720324,1717724144075,291.94501409,9.999e-05,2]
[328720325,1717724162321,291.94501409,9.999e-05,2]
[328720326,1717724176100,291.94501409,9.999e-05,2]
[328720327,1717724194093,291.94501409,9.999e-05,2]
[328720333,1717724212091,291.94501409,9.999e-05,2]
[328720334,1717724230098,291.94501409,9.999e-05,2]
[328720335,1717724233569,4120.46788101,0.00025,60]
[328720336,1717724250142,291.94501409,9.999e-05,2]
[328720337,1717724268094,395.82858944,9.999e-05,2]
[328720338,1717724321170,57183.70589999,9.999e-05,2]
[328720340,1717724387378,361.79522559,0.000135,2]
[328720341,1717724387763,361.79522559,0.000135,2]
[328720342,1717724388194,361.79522559,0.000135,2]
[328720343,1717724388577,361.79522559,0.000135,2]
[328720344,1717724389031,361.79522559,0.000135,2]
[328720345,1717724389397,361.79522559,0.000135,2]
[328720346,1717724389834,361.79522559,0.000135,2]
[328720347,1717724390228,361.79522559,0.000135,2]
[328720348,1717724390628,361.79522559,0.000135,2]
[328720349,1717724390988,361.79522559,0.000135,2]
[328720350,1717724391357,361.79522559,0.000135,2]
[328720351,1717724391740,361.79522559,0.000135,2]
[328720352,1717724392248,361.79522559,0.000135,2]
[328720353,1717724392623,361.79522559,0.000135,2]
[328720354,1717724393007,361.79522559,0.000135,2]
[328720355,1717724393385,361.79522559,0.000135,2]
[328720356,1717724393758,361.79522559,0.000135,2]
[328720357,1717724394253,361.79522559,0.000135,2]
[328720358,1717724394792,361.79522559,0.000135,2]
[328720359,1717724395021,361.79522,0.000135,2]
[328720360,1717724828342,-166.666666,0.00015,2]
[328720361,1717724829188,-642.94559985,0.00015,2]
[328720362,1717724829214,-161.08782185,0.00015,2]
[328720363,1717724829240,-201.56536975,0.00015,2]
[328720364,1717724829270,-150.0,0.000189,2]
[328720365,1717724829295,-590.27173926,0.0002066,7]
[328720366,1717724829320,-151.14342879,0.0002256,2]
[328720367,1717724829348,-357.8905863,0.00022675,2]
[328720368,1717724829379,-214.57759,0.00022734,2]
[328720369,1717724829403,-250.0,0.00022735,2]
[328720370,1717724829426,-236.2785909,0.0002301,2]
[328720371,1717724829448,-185.30449836,0.00023799,2]
[328720372,1717724829477,-569.23172259,0.000238,10]
[328720373,1717724829502,-221.60899954,0.00024066,2]
[328720417,1717725035228,-154.93802479,0.00023038,2]
[328720418,1717725035237,-168.701018,0.00023039,2]
[328720419,1717725035248,-921.09408844,0.00024086,2]
[328720420,1717725035258,-287.0,0.00024088,2]
[328720421,1717725035268,-287.0,0.00024088,2]
[328720422,1717725035278,-287.0,0.00024088,2]
[328720423,1717725035287,-287.0,0.00024088,2]
[328720424,1717725035298,-287.0,0.00024088,2]
[328720425,1717725035312,-287.0,0.00024088,2]
[328720426,1717725035322,-287.0,0.00024088,2]
[328720427,1717725035331,-287.0,0.00024088,2]
[328720428,1717725035342,-287.0,0.00024088,2]
[328720429,1717725035351,-287.0,0.00024088,2]
[328720430,1717725035361,-287.0,0.00024088,2]
[328720431,1717725035370,-287.0,0.00024088,2]
[328720432,1717725035382,-287.0,0.00024088,2]
[328720433,1717725035392,-287.0,0.00024088,2]
[328720434,1717725035401,-287.0,0.00024088,2]
[328720435,1717725035410,-287.0,0.00024088,2]
[328720436,1717725035421,-287.0,0.00024088,2]
[328720437,1717725035430,-287.0,0.00024088,2]
[328720438,1717725035440,-287.0,0.00024088,2]
[328720439,1717725035449,-287.0,0.00024088,2]
[328720440,1717725035459,-287.0,0.00024088,2]
[328720441,1717725035468,-287.0,0.00024088,2]
[328720442,1717725035478,-287.0,0.00024088,2]
[328720443,1717725035487,-287.0,0.00024088,2]
[328720444,1717725035497,-287.0,0.00024088,2]
[328720445,1717725035507,-287.0,0.00024088,2]
[328720446,1717725035517,-287.0,0.00024088,2]
[328720447,1717725035527,-287.0,0.00024088,2]
[328720448,1717725035537,-287.0,0.00024088,2]
[328720449,1717725035547,-287.0,0.00024088,2]
[328720450,1717725035556,-287.0,0.00024088,2]
[328720451,1717725035565,-287.0,0.00024088,2]
[328720452,1717725035575,-287.0,0.00024088,2]
[328720453,1717725035585,-287.0,0.00024088,2]
[328720454,1717725035594,-287.0,0.00024088,2]
[328720455,1717725035604,-287.0,0.00024088,2]
[328720456,1717725035614,-287.0,0.00024088,2]
[328720457,1717725035624,-287.0,0.00024088,2]
[328720458,1717725035632,-287.0,0.00024088,2]
[328720459,1717725035642,-287.0,0.00024088,2]
[328720460,1717725035652,-287.0,0.00024088,2]
[328720461,1717725035661,-287.0,0.00024088,2]
[328720462,1717725035672,-287.0,0.00024094,2]
[328720463,1717725035681,-287.0,0.00024094,2]
[328720464,1717725035690,-287.0,0.00024094,2]
[328720465,1717725035700,-287.0,0.00024094,2]
[328720466,1717725035709,-287.0,0.00024094,2]
[328720467,1717725035719,-287.0,0.00024094,2]
[328720468,1717725035728,-287.0,0.00024094,2]
[328720469,1717725035737,-287.0,0.00024094,2]
[328720470,1717725035747,-287.0,0.00024094,2]
[328720471,1717725035757,-287.0,0.00024094,2]
[328720472,1717725035768,-287.0,0.00024094,2]
[328720473,1717725035777,-287.0,0.00024094,2]
[328720474,1717725035787,-287.0,0.00024094,2]
[328720475,1717725035797,-287.0,0.00024094,2]
[328720476,1717725035806,-287.0,0.00024094,2]
[328720477,1717725035816,-287.0,0.00024094,2]
[328720478,1717725035825,-287.0,0.00024094,2]
[328720479,1717725035835,-287.0,0.00024094,2]
[328720480,1717725035844,-287.0,0.00024094,2]
[328720481,1717725035853,-287.0,0.00024094,2]
[328720482,1717725035863,-287.0,0.00024094,2]
[328720483,1717725035872,-287.0,0.00024094,2]
[328720484,1717725035881,-287.0,0.00024094,2]
[328720485,1717725035890,-287.0,0.00024094,2]
[328720486,1717725035900,-287.0,0.00024094,2]
[328720487,1717725035909,-287.0,0.00024094,2]
[328720488,1717725035918,-287.0,0.00024094,2]
[328720489,1717725035928,-287.0,0.00024094,2]
[328720490,1717725035937,-287.0,0.00024094,2]
[328720491,1717725035946,-287.0,0.00024094,2]
[328720492,1717725035956,-287.0,0.00024094,2]
[328720493,1717725035968,-287.0,0.00024094,2]
[328720494,1717725035978,-287.0,0.00024094,2]
[328720495,1717725035988,-287.0,0.00024094,2]
[328720496,1717725035998,-287.0,0.00024094,2]
[328720497,1717725036008,-287.0,0.00024094,2]
[328720498,1717725036018,-287.0,0.00024094,2]
[328720499,1717725036028,-287.0,0.00024094,2]
[328720500,1717725036038,-287.0,0.00024094,2]
[328720501,1717725036048,-287.0,0.00024094,2]
[328720502,1717725036058,-287.0,0.00024094,2]
[328720503,1717725036068,-925.86785159,0.00024195,2]
[328720504,1717725036077,-565.99168941,0.00024247,7]
[328720505,1717725036087,-166.666666,0.00024493,2]
[328720506,1717725036097,-553.62926737,0.00024536,2]
[328720507,1717725036106,-464.61901267,0.00024557,2]
[328720508,1717725036117,-464.61901265,0.00024618,2]
[328720509,1717725036128,-500.0,0.00024656,2]
[328720510,1717725036138,-527.1959233,0.00024656,2]
[328720511,1717725036148,-175.25249879,0.00024657,7]
[328720512,1717725036160,-162.52655373,0.00024657,2]
[328720513,1717725036171,-253.54012992,0.00024657,2]
[328720514,1717725036180,-566.45,0.00024657,2]
[328720515,1717725036190,-511.08087021,0.00024657,2]
[328720516,1717725036199,-506.13032692,0.00024657,2]
[328720517,1717725036208,-500.0,0.00024657,2]
[328720518,1717725036218,-502.3865005,0.00024657,2]
[328720519,1717725036228,-504.8908398,0.00024657,2]
[328720520,1717725036237,-500.0,0.00024657,2]
[328720521,1717725036246,-500.0,0.00024657,2]
[328720522,1717725036257,-572.80765425,0.00024657,2]
[328720523,1717725036267,-372.87302131,0.00024657,2]
[328720524,1717725036276,-500.0,0.00024657,2]
[328720525,1717725036285,-502.9039968,0.00024657,2]
[328720526,1717725036297,-508.68643508,0.00024657,2]
[328720527,1717725036308,-502.55604572,0.00024657,2]
[328720528,1717725036319,-503.26126698,0.00024657,2]
[328720529,1717725036328,-503.92146442,0.00024657,2]
[328720530,1717725036338,-503.50488859,0.00024657,2]
[328720531,1717725036348,-500.0,0.00024657,2]
[328720532,1717725036357,-502.8089113,0.00024657,2]
[328720533,1717725036366,-505.66246356,0.00024657,2]
[328720534,1717725036377,-534.98468319,0.00024657,2]
[328720535,1717725036386,-503.11132476,0.00024657,2]
[328720536,1717725036395,-547.85921927,0.00024657,2]
[328720537,1717725036405,-500.0,0.00024657,2]
[328720538,1717725036414,-504.4976628,0.00024657,2]
[328720539,1717725036424,-502.716776,0.00024657,2]
[328720540,1717725036433,-512.82,0.00024657,2]
[328720541,1717725036442,-586.05,0.00024657,2]
[328720542,1717725036452,-513.19112511,0.00024657,2]
[328720543,1717725036461,-536.65,0.00024657,2]
[328720544,1717725036481,-512.25475817,0.00024657,2]
[328720545,1717725036490,-500.0,0.00024657,2]
[328720546,1717725036500,-692.65,0.00024657,2]
[328720547,1717725036509,-151.0,0.00024657,2]
[328720548,1717725036519,-151.0,0.00024657,2]
[328720549,1717725036528,-151.56823,0.00024657,2]
[328720550,1717725036537,-151.0,0.00024657,2]
[328720551,1717725036546,-165.83196737,0.00024657,2]
[328720552,1717725036557,-1123.14,0.00024657,2]
[328720553,1717725036567,-155.869702,0.00024657,2]
[328720554,1717725036576,-500.0,0.00024657,2]
[328720555,1717725036586,-151.0,0.00024657,2]
[328720556,1717725036595,-500.0,0.00024657,2]
[328720557,1717725036605,-500.0,0.00024657,2]
[328720558,1717725036615,-242.93245,0.00024657,2]
[328720559,1717725036624,-902.03,0.00024657,2]
[328720560,1717725036634,-500.0,0.00024657,2]
[328720561,1717725036643,-500.0,0.00024657,2]
[328720562,1717725036653,-500.0,0.00024657,2]
[328720563,1717725036663,-517.71,0.00024657,2]
[328720564,1717725036672,-1298.94,0.00024657,2]
[328720565,1717725036682,-1899.07,0.00024657,2]
[328720566,1717725036691,-530.38364666,0.00024657,2]
[328720567,1717725036701,-500.0,0.00024657,2]
[328720568,1717725036711,-170.041941,0.00024657,2]
[328720569,1717725036720,-170.041941,0.00024657,2]
[328720570,1717725036730,-610.3,0.00024657,2]
[328720571,1717725036739,-1179.32,0.00024657,2]
[328720572,1717725036749,-500.0,0.00024657,2]
[328720573,1717725036758,-3035.61,0.00024657,2]
[328720574,1717725036768,-2932.12,0.00024657,2]
[328720575,1717725036778,-500.0,0.00024657,2]
[328720576,1717725036787,-248.540352,0.00024657,2]
[328720577,1717725036797,-3009.66,0.00024657,2]
[328720578,1717725036806,-161.738151,0.00024657,2]
[328720579,1717725036816,-1313.09,0.00024657,2]
[328720580,1717725036825,-645.76,0.00024657,2]
[328720581,1717725036835,-531.44,0.00024657,2]
[328720582,1717725036845,-158.304558,0.00024657,2]
[328720583,1717725036855,-171.69768717,0.00024657,2]
[328720584,1717725036865,-500.0,0.00024657,2]
[328720585,1717725036875,-500.0,0.00024657,2]
[328720586,1717725036885,-152.569092,0.00024657,2]
[328720587,1717725036895,-3871.56,0.00024657,2]
[328720588,1717725036906,-728.21,0.00024657,2]
[328720589,1717725036916,-151.0,0.00024657,2]
[328720590,1717725036926,-167.512689,0.00024657,2]
[328720591,1717725036936,-566.35,0.00024657,2]
[328720592,1717725036945,-500.0,0.00024657,2]
[328720593,1717725036955,-500.0,0.00024657,2]
[328720594,1717725036965,-521.64027119,0.00024657,2]
[328720595,1717725036975,-151.0,0.00024657,2]
[328720596,1717725036985,-151.0,0.00024657,2]
[328720597,1717725036995,-151.0,0.00024657,2]
[328720598,1717725037005,-175.70706658,0.00024657,2]
[328720599,1717725037015,-500.0,0.00024657,2]
[328720600,1717725037024,-1239.34,0.00024657,2]
[328720601,1717725037034,-464.61901265,0.00024679,2]
[328720602,1717725037044,-464.61901265,0.00024739,2]
[328720603,1717725037054,-503.162,0.00024767,2]
[328720604,1717725037064,-464.61901265,0.000248,2]
[328720605,1717725037074,-151.0,0.000248,2]
[328720606,1717725037084,-4862.71,0.00024868,3]
[328720607,1717725037094,-151.0,0.00024868,2]
[328720608,1717725037103,-255.16,0.00024868,3]
[328720609,1717725037112,-4052.26,0.00024868,3]
[328720610,1717725037122,-170.041941,0.0002487,2]
[328720611,1717725037132,-170.041941,0.0002487,2]
[328720612,1717725037141,-151.0,0.00024878,2]
[328720613,1717725037151,-151.0,0.00024878,2]
[328720614,1717725037161,-151.0,0.00024878,2]
[328720615,1717725037172,-214.90900031,0.00024879,2]
[328720616,1717725037181,-500.0,0.00024879,2]
[328720617,1717725037191,-537.55901447,0.00024879,2]
[328720618,1717725037200,-500.0,0.00024879,2]
[328720619,1717725037210,-204.34560087,0.00024879,2]
[328720620,1717725037219,-500.0,0.00024879,2]
[328720621,1717725037229,-236.7872752,0.00024879,2]
[328720622,1717725037239,-500.0,0.00024879,2]
[328720623,1717725037248,-500.0,0.00024879,2]
[328720624,1717725037257,-500.0,0.00024879,2]
[328720625,1717725037266,-500.0,0.00024879,2]
[328720626,1717725037275,-500.0,0.00024879,2]
[328720627,1717725037284,-500.0,0.00024879,2]
[328720628,1717725037293,-500.0,0.00024879,2]
[328720629,1717725037304,-500.0,0.00024879,2]
[328720630,1717725037315,-500.0,0.00024879,2]
[328720631,1717725037329,-500.0,0.00024879,2]
[328720632,1717725037338,-500.0,0.00024879,2]
[328720633,1717725037349,-500.0,0.00024879,2]
[328720634,1717725037358,-500.0,0.00024879,2]
[328720635,1717725037368,-500.0,0.00024879,2]
[328720636,1717725037378,-417.93052004,0.00024879,2]
[328720637,1717725037396,-82.06947996,0.00024879,2]
[328720638,1717725037405,-500.0,0.00024879,2]
[328720639,1717725037415,-351.45928114,0.00024879,2]
[328720640,1717725037425,-584.95296827,0.0002488,4]
[328720666,1717725042141,-506.42644448,0.00024657,2]
[328720668,1717725042151,-1412.37742929,0.0002488,4]
[328720747,1717725045345,-468.29505125,0.00024657,2]
[328720748,1717725045572,-31.70494875,0.00024657,2]
[328720749,1717725045582,-500.0,0.00024657,2]
[328720750,1717725045591,-500.0,0.00024657,2]
[328720751,1717725045600,-208.158,0.00024794,2]
[328720752,1717725045609,-4804.36172898,0.0002488,4]
[328720753,1717725045621,-1905.1045208,0.0002488,4]
[328720755,1717725046699,-500.0,0.00024657,2]
[328720756,1717725046709,-533.21906495,0.00024879,2]
[328720757,1717725046719,-533.21906495,0.00024879,2]
[328720758,1717725046729,-533.21906495,0.00024879,2]
[328720759,1717725046739,-11768.60726362,0.0002488,4]
[328720760,1717725070554,187.30405388,9.999e-05,2]
[328720761,1717725072544,18.09345775,0.00015,2]
[328720762,1717725072567,151.0,0.00015,2]
[328720763,1717725072587,166.666666,0.00015,2]
[328720764,1717725072607,166.666667,0.00015,2]
[328720765,1717725072632,190.42256622,0.00015,2]
[328720766,1717725079403,252.32412823,9.999e-05,2]
[328720767,1717725088812,927.1117103,9.999e-05,2]
[328720768,1717725092302,154.93802479,9.999e-05,2]
[328720770,1717725105713,774.22266936,9.999e-05,2]
[328720771,1717725108577,2112.86517201,9.999e-05,2]
[328720772,1717725110002,686.12053619,9.999e-05,2]
[328720773,1717725118853,1903.14800411,9.999e-05,2]
[328720775,1717725239262,154.95351395,9.999e-05,2]
[328720777,1717725801992,522.98365817,9.999e-05,2]
[328720778,1717725804505,522.98365817,9.999e-05,2]
[328720779,1717725839730,154.93802479,9.999e-05,2]
[328720809,1717726005288,679.166593,0.00029721,120]
[328720810,1717726037130,-247.77,0.00014787,2]
[328720811,1717726071708,185.30449836,9.999e-05,2]
[328720815,1717726170107,-176.37494992,0.00014388,2]
[328720817,1717726171140,-78.54409308,0.00014388,2]
[328720818,1717726171159,-2112.86517201,0.00014795,2]
[328720819,1717726171180,-252.32412823,0.00014796,2]
[328720820,1717726171202,-163.79446421,0.00014797,2]
[328720821,1717726171222,-2362.396981,0.00014807,2]
[328720822,1717726171242,-154.93802479,0.00016109,2]
[328720823,1717726171265,-1453.59790825,0.0001611,2]
[328720824,1717726171286,-157.08712556,0.00016116,2]
[328720825,1717726171307,-962.63521921,0.00016117,2]
[328720826,1717726171326,-46620.43897549,0.00016209,2]
[328720827,1717726171346,-3000.0,0.0001621,2]
[328720828,1717726171364,-1014.53661475,0.00016217,2]
[328720829,1717726171389,-24900.0,0.00016219,2]
[328720830,1717726171411,-1912.5590564,0.00017145,2]
[328720831,1717726171432,-258.9767558,0.00017252,2]
[328720832,1717726171453,-962.63521915,0.00017657,2]
[328720833,1717726171472,-2763.22163269,0.00018,2]
[328720834,1717726171493,-586.1998637,0.00018069,2]
[328720835,1717726171515,-1453.59790821,0.00018222,2]
[328720836,1717726171539,-962.63521915,0.00019198,2]